[Event "Cattolica Chess Festival 2022"]
[Site "Cattolica"]
[Date "2022.06.06"]
[Round "3.9"]
[White "Jobava, Baadur"]
[Black "Milikow, Elie"]
[Result "1-0"]
[ECO "B30"]
[WhiteElo "2600"]
[BlackElo "2428"]
[Annotator "TA"]
[PlyCount "133"]
[EventDate "2022.06.04"]
[EventCountry "ITA"]
[SourceTitle "playchess.com"]
[Source "ChessBase"]
[SourceQuality "1"]
[TimeControl "5400+30"]

{[%evp 16,133,25,20,31,14,25,8,26,22,6,6,20,9,13,0,10,21,37,30,25,24,27,16,38,33,41,27,36,37,19,19,50,55,48,38,75,68,77,77,57,85,37,72,63,18,16,21,19,20,20,21,21,18,29,29,20,26,37,34,62,26,62,7,59,60,97,95,108,103,100,93,88,92,97,91,100,84,476,378,338,75,75,75,75,75,75,31,718,684,577,545,29966,29967,29967,29968,29968,29963,29963,29964,29963,29964,29973,29974,29975,29976,29976,29977,29977,29978,29978,29979,29980,29981,29982,29983,29983,29984,29983,29984]} 1. e4 {[%emt 0:51:40]} c5 {[%emt 0:30:13]} 2. Nf3 {[%emt 0:00:08]} Nc6 {[%emt 0:00:09]} 3. Bb5 {[%emt 0:00:11]} e6 {[%emt 0:00:42]} 4. O-O {[%emt 0:00:16]} Nge7 {[%emt 0:00:28]} 5. Re1 {[%emt 0:00:34]} a6 {[%emt 0:00:06]} 6. Bf1 {[%emt 0:00:33]} d5 {[%emt 0:00:07]} 7. exd5 {[%emt 0:00:06]} Nxd5 {[%emt 0:00:07]} 8. d4 {[%emt 0:00:07]} Nf6 {[%emt 0:00:11]} 9. Be3 {[%emt 0:00:43]} Be7 {[%emt 0:00:12] B30: Sicilian: 2...Nc6 3 Bb5, lines without ...g6.} 10. c4 {[%emt 0:00:41]} O-O {[%emt 0:00:18]} 11. Nc3 {[%emt 0:00:16]} cxd4 {[%emt 0:01:07] The position is equal.} 12. Nxd4 {[%emt 0:05:04][%cal Bf3d4,Bd4b3,Bb3c5][%mdl 32]} Bd7 {[%emt 0:03:00] 12...Bd7 has lost popularity.} 13. Nb3 {[%emt 0:01:24]} Ne5 {[%emt 0:01:48]} 14. Qd4 {[%emt 0:02:21]} Ng6 {[%emt 0:02:11] [#]} 15. Rad1 $146 {[%emt 0:00:51]} ({Predecessor:} 15. Red1 Qb8 16. g3 Bc6 17. Bg2 Rd8 18. Qb6 Nd7 19. Qa5 Bxg2 20. Kxg2 b6 21. Qa4 {0-1 (29) Svoboda,S (2334)-Babula,V (2553) Ostrava 2014}) 15... Qc7 {[%emt 0:01:51][%cal Ob7b5]} 16. Qb6 {[%emt 0:08:39]} Qb8 {[%emt 0:02:42]} 17. Bc5 {[%emt 0:02:40]} Bxc5 {[%emt 0:05:23]} 18. Nxc5 {[%emt 0:00:44]} Bc6 {[%emt 0:02:35]} 19. h3 {[%emt 0:04:20]} Rc8 {[%emt 0:15:55]} 20. b4 {[%emt 0:02:09]} Qf4 {[%emt 0:01:08]} 21. Nb3 {[%emt 0:02:28]} ({Wrong is} 21. Nxb7 $2 Qb8 22. Rd8+ Rxd8 $19) 21... Qg5 {[%emt 0:15:03][%cal Oc6g2] White must now prevent ...Bxg2!} 22. Qe3 {[%emt 0:02:29]} (22. Re3 {feels hotter.} Nd7 23. Qd4 Rd8 24. Ne4) 22... Qxe3 {[%emt 0:04:19]} 23. Rxe3 {[%emt 0:00:33]} Rd8 {[%emt 0:02:47]} 24. Rxd8+ {[%emt 0:00:25]} Rxd8 {[%emt 0:00:06]} 25. Na5 {[%emt 0:13:38]} Ne7 {[%emt 0:01:08]} 26. b5 {[%emt 0:00:00]} axb5 {[%emt 0:00:14]} 27. cxb5 {[%emt 0:00:00]} Bd5 {[%emt 0:00:15]} 28. Nxd5 {[%emt 0:00:00]} Nfxd5 {[%emt 0:00:35]} 29. Nxb7 {[%emt 0:00:00]} Ra8 {[%emt 0:00:18]} 30. Re2 {[%emt 0:00:00] And now Rc2 would win.} Rb8 $1 {[%emt 0:00:26]} 31. Nd6 {[%emt 0:00:00]} Rb6 {[%emt 0:00:06]} 32. Nc4 {[%emt 0:00:00]} Rxb5 {[%emt 0:00:10]} 33. a4 {[%emt 0:00:00]} Rb4 {[%emt 0:10:03]} 34. Rb2 {[%emt 0:00:00]} Nc6 {[%emt 0:00:52]} 35. Rxb4 {[%emt 0:00:00]} Ndxb4 $11 {[%emt 0:00:46][%mdl 4096] Endgame KBN-KNN} 36. h4 {[%emt 0:00:00]} f5 {[%emt 0:00:00]} 37. f4 {[%emt 0:00:00]} Kf7 {[%emt 0:00:00]} 38. Kf2 {[%emt 0:00:00]} Kf6 {[%emt 0:00:00]} 39. Nb6 {[%emt 0:00:00]} (39. g3 $14) 39... g6 {[%emt 0:00:00]} (39... Ke7 $1 $11) 40. Bb5 $14 {[%emt 0:00:00]} Na7 {[%emt 0:00:00]} 41. Ke3 {[%emt 0:00:00] Kd4 is the strong threat.} Nc2+ {[%emt 0:01:25]} 42. Kd2 {[%emt 0:00:00]} Nd4 {[%emt 0:00:24]} 43. Bc4 {[%emt 0:00:00]} Ke7 {[%emt 0:01:23]} 44. Kc3 {[%emt 0:00:00]} Ndc6 {[%emt 0:00:09]} 45. g3 {[%emt 0:00:00] White is more active.} Kd6 {[%emt 0:00:35]} 46. Ba2 {[%emt 0:00:00]} Na5 $2 {[%emt 0:00:54][%mdl 8192]} (46... Kc7 $16 {is tougher.}) 47. Nc4+ $18 {[%emt 0:00:00]} Nxc4 {[%emt 0:00:05]} 48. Kxc4 {[%emt 0:00:00] KB-KN} (48. Bxc4 $18 {and the rest is easy. Hoping for a5.} Nc6 49. Bb5) 48... Nc6 $16 {[%emt 0:00:56]} 49. Kb5 {[%emt 0:00:00]} e5 {[%emt 0:01:12]} 50. fxe5+ {[%emt 0:00:00]} Nxe5 {[%emt 0:00:05]} 51. a5 {[%emt 0:00:00][%cal Ba4a5,Ba5a6][%mdl 32] aiming for Bg8.} (51. Bg8 $5 {[%cal Rg8h7]} h6 52. Bh7 $16 (52. a5 Kc7 $14)) 51... h6 $2 {[%emt 0:00:51][%mdl 8192] [#] Black is now going downhill.} (51... Kc7 $14) 52. a6 $1 $18 {[%emt 0:00:00] White threatens a7 and mate.} Kc7 {[%emt 0:00:04] [#]} 53. Be6 $1 {[%emt 0:00:00]} g5 {[%emt 0:01:03]} 54. hxg5 {[%emt 0:00:00] White mates.} hxg5 {[%emt 0:00:05]} 55. Bxf5 {[%emt 0:00:00]} Kb8 {[%emt 0:00:11]} 56. Kb6 {[%emt 0:00:00]} Nc4+ {[%emt 0:00:04]} 57. Kc5 {[%emt 0:00:00]} Ne3 {[%emt 0:00:24]} 58. Bd3 {[%emt 0:00:00]} Ka7 {[%emt 0:00:17]} 59. Kd4 {[%emt 0:00:00]} Ng4 {[%emt 0:01:32]} 60. Be2 {[%emt 0:00:00]} Nh6 {[%emt 0:00:57]} 61. Ke5 {[%emt 0:00:00]} Nf7+ {[%emt 0:00:29]} 62. Kf6 {[%emt 0:00:00]} Nd6 {[%emt 0:00:08]} 63. Kxg5 {[%emt 0:00:00]} Ne4+ {[%emt 0:00:12]} 64. Kf4 {[%emt 0:00:00]} Nc3 {[%emt 0:00:07]} 65. Bc4 {[%emt 0:00:00]} Na4 {[%emt 0:00:33]} 66. g4 {[%emt 0:00:00]} Nb6 {[%emt 0:00:07]} 67. Be6 {[%emt 0:00:00] Weighted Error Value: White=0.15 (very precise) /Black=0.35} 1-0

[Event "Cattolica Chess Festival 2022"]
[Site "Cattolica"]
[Date "2022.06.06"]
[Round "3.10"]
[White "Brunello, Sabino"]
[Black "Tytynnik, Artem"]
[Result "1-0"]
[ECO "D78"]
[WhiteElo "2521"]
[BlackElo "2205"]
[Annotator "TA"]
[PlyCount "95"]
[EventDate "2022.06.04"]
[EventCountry "ITA"]
[SourceTitle "playchess.com"]
[Source "ChessBase"]
[SourceQuality "1"]
[TimeControl "5400+30"]

{[%evp 21,95,16,29,31,56,0,0,0,0,0,10,13,18,0,8,16,30,6,30,23,60,47,56,43,48,27,38,51,83,41,62,66,102,89,88,90,93,15,56,23,49,48,309,327,304,320,360,347,400,403,387,385,445,438,489,402,693,684,967,959,936,914,818,562,530,464,12839,11623,29979,29980,29980,29981,29981,12841,12836,12830]} 1. c4 {[%emt 0:30:02]} Nf6 {[%emt 0:31:35]} 2. g3 {[%emt 0:00:06]} d5 {[%emt 0:00:24]} 3. cxd5 {[%emt 0:00:12]} Nxd5 {[%emt 0:00:06]} 4. Bg2 {[%emt 0:00:07]} g6 {[%emt 0:00:08]} 5. Qb3 {[%emt 0:01:33]} c6 {[%emt 0:01:45]} 6. Nc3 {[%emt 0:02:14]} Nb6 {[%emt 0:00:55]} 7. Nf3 {[%emt 0:00:24]} Bg7 {[%emt 0:00:15]} 8. d4 {[%emt 0:01:02]} O-O {[%emt 0:03:44]} 9. O-O {[%emt 0:01:53]} Na6 {[%emt 0:02:23]} 10. Rd1 {[%emt 0:02:29]} Be6 {[%emt 0:01:57]} 11. Qc2 {[%emt 0:03:04]} Nb4 {[%emt 0:00:49]} 12. Qb1 {[%emt 0:01:42] D78: Fianchetto Grünfeld: 6 0-0 c6.} N4d5 {[%emt 0:02:32]} 13. Ne4 {[%emt 0:15:43]} (13. e4 $14) 13... Bf5 $11 {[%emt 0:02:51] [#]} 14. Nh4 $146 {[%emt 0:01:23] The position is equal.} ({Predecessor:} 14. h3 Nf6 15. Nxf6+ exf6 16. e4 Be6 17. g4 Qd6 {1-0 (50) Bu,X (2675)-Khmelniker,I (2510) Biel 2011}) 14... Bg4 {[%emt 0:00:27]} 15. f3 {[%emt 0:07:40]} Bc8 {[%emt 0:01:50]} 16. Nf2 {[%emt 0:02:23]} f5 {[%emt 0:13:27]} 17. f4 {[%emt 0:01:32]} Be6 {[%emt 0:06:08]} 18. e4 {[%emt 0:02:00]} fxe4 {[%emt 0:00:44]} 19. Qxe4 {[%emt 0:00:10]} (19. Nxe4 {with more complications.} Nc7 20. Ng5 Bg4 21. Ngf3) 19... Qd7 {[%emt 0:03:31]} 20. Nf3 {[%emt 0:08:58]} Nf6 {[%emt 0:01:47]} 21. Qe1 {[%emt 0:01:33]} Bd5 {[%emt 0:01:35]} 22. Ne5 {[%emt 0:00:09]} Qc7 {[%emt 0:02:44]} 23. Nh3 {[%emt 0:01:17]} e6 {[%emt 0:07:01]} 24. Ng5 {[%emt 0:00:23]} Rae8 {[%emt 0:00:18]} 25. Bd2 {[%emt 0:00:24] Strongly threatening Bb4.} Nfd7 {[%emt 0:05:28]} 26. h4 {[%emt 0:03:44] White is more active.} Nxe5 {[%emt 0:01:26]} 27. dxe5 {[%emt 0:01:23]} Bxg2 {[%emt 0:00:58]} 28. Kxg2 {[%emt 0:00:03]} Nd5 {[%emt 0:00:42]} 29. Qe4 {[%emt 0:02:00]} ({White should play} 29. Ne4 $16) 29... Bh6 {[%emt 0:01:39]} 30. Nf3 {[%emt 0:02:23]} Rf7 {[%emt 0:01:37]} 31. Rh1 {[%emt 0:05:02]} Kg7 $2 {[%emt 0:04:42][%mdl 8192] Loses the game.} (31... Ref8 $14) 32. h5 $18 {[%emt 0:03:32] [#] Hoping for hxg6.} Rh8 {[%emt 0:00:00]} 33. Rh3 {[%emt 0:00:00]} c5 {[%emt 0:00:00]} 34. hxg6 {[%emt 0:00:00]} hxg6 {[%emt 0:00:00]} 35. Rah1 {[%emt 0:00:00] And now Ng5 would win.} Qc6 {[%emt 0:00:00][%cal Od5f4]} 36. Kf1 {[%emt 0:00:00]} Qb5+ {[%emt 0:00:00]} 37. Qe2 {[%emt 0:00:00]} Qxb2 {[%emt 0:00:00]} 38. Ng5 {[%emt 0:00:00]} Qb1+ {[%emt 0:00:44]} (38... Re7 $142 39. Rxh6 Rxh6 40. Rxh6 Qb1+ 41. Be1 Ne3+ 42. Qxe3 Kxh6 43. Qxc5 Re8 44. Qxa7 Qb5+ 45. Kg1 Qe2) 39. Kg2 {[%emt 0:00:00]} Qxh1+ {[%emt 0:03:14]} 40. Rxh1 {[%emt 0:00:00]} Bxg5 {[%emt 0:00:03]} 41. Rxh8 {[%emt 0:00:00]} Kxh8 {[%emt 0:00:07]} 42. fxg5 {[%emt 0:00:00] Qb5 is the strong threat.} b6 {[%emt 0:00:48]} 43. Qg4 {[%emt 0:00:00]} Rf5 {[%emt 0:00:58]} (43... Re7 $142 44. Qa4 Kh7) 44. Qa4 {[%emt 0:01:55] Threatening mate with Qe8+.} Rxe5 {[%emt 0:00:36] [#]} 45. Bc3 $1 {[%emt 0:01:02][%mdl 512]} Nxc3 {[%emt 0:00:17]} 46. Qe8+ {[%emt 0:00:05]} Kg7 {[%emt 0:00:24]} 47. Qe7+ {[%emt 0:00:08]} (47. Qd7+ $142 Kg8 48. Qd8+ Kf7 49. Qd7+ Kg8 50. Qd8+ Kf7 51. Qf6+ Ke8 52. Qxe5) 47... Kg8 {[%emt 0:00:07]} 48. Qd8+ {[%emt 0:00:05] Weighted Error Value: White=0.25 (precise) /Black=0.64} 1-0

[Event "Cattolica Chess Festival 2022"]
[Site "Cattolica"]
[Date "2022.06.07"]
[Round "4.1"]
[White "Basso, Pier Luigi"]
[Black "Pantsulaia, Levan"]
[Result "0-1"]
[ECO "B19"]
[WhiteElo "2570"]
[BlackElo "2587"]
[Annotator "TA"]
[PlyCount "102"]
[EventDate "2022.06.04"]
[EventCountry "ITA"]
[SourceTitle "playchess.com"]
[Source "ChessBase"]
[SourceQuality "1"]
[TimeControl "5400+30"]

{[%evp 25,102,29,22,29,25,25,22,0,0,0,21,7,0,12,0,15,16,21,16,19,6,-54,0,-122,-135,-354,-335,-344,-351,-340,-337,-354,-360,-347,-342,-344,-355,-356,-335,-335,-317,-440,-422,-447,-433,-495,-491,-484,-481,-556,-523,-581,-558,-849,-848,-835,-834,-816,-811,-1200,-879,-793,-575,-873,-886,-1445,-925,-29979,-29980,-29969,-29969,-29989,-29990,-29990,-29991,-29992,-29993,-29998,-29999]} 1. e4 {[%emt 0:36:23]} c6 {[%emt 0:31:47]} 2. d4 {[%emt 0:03:11]} d5 {[%emt 0:00:06]} 3. Nd2 {[%emt 0:00:06]} dxe4 {[%emt 0:00:28]} 4. Nxe4 {[%emt 0:00:06]} Bf5 {[%emt 0:00:06]} 5. Ng3 {[%emt 0:00:05]} Bg6 {[%emt 0:00:07]} 6. h4 {[%emt 0:00:06]} h6 {[%emt 0:00:04]} 7. Nf3 {[%emt 0:00:05]} Nd7 {[%emt 0:01:19]} 8. h5 {[%emt 0:00:07]} Bh7 {[%emt 0:00:04]} 9. Bd3 {[%emt 0:00:04]} Bxd3 {[%emt 0:00:05]} 10. Qxd3 {[%emt 0:00:04]} e6 {[%emt 0:00:21]} 11. Bd2 {[%emt 0:00:08]} Ngf6 {[%emt 0:05:30]} 12. O-O-O {[%emt 0:02:24]} Bd6 {[%emt 0:05:19]} 13. Ne4 {[%emt 0:01:40]} Bc7 {[%emt 0:00:05] [#]} 14. Rde1 $146 {[%emt 0:04:09] B19: Classical Caro-Kann: 4...Bf5 main line.} ({Predecessor:} 14. Nxf6+ Nxf6 15. Qb3 b5 16. Ne5 Qd5 17. Bb4 a5 18. Bc5 Bxe5 19. dxe5 Qxc5 20. exf6 Qg5+ 21. Kb1 Qxf6 {1-0 (46) Saric,I (2652)-Riazantsev,A (2671) Tallinn 2016}) 14... Nxe4 {[%emt 0:03:38]} 15. Qxe4 {[%emt 0:00:11]} Qe7 {[%emt 0:06:13]} 16. g4 {[%emt 0:08:34] The position is equal.} Nf6 {[%emt 0:02:03]} 17. Qe2 {[%emt 0:00:09]} O-O-O {[%emt 0:10:44]} 18. g5 {[%emt 0:04:44]} hxg5 {[%emt 0:02:39]} 19. Bxg5 {[%emt 0:00:29]} Rd5 {[%emt 0:00:06][%cal Od5g5] Strongly threatening ...Rxg5!} 20. Ne5 {[%emt 0:11:14]} Rxd4 {[%emt 0:01:34]} 21. h6 {[%emt 0:00:47]} gxh6 {[%emt 0:02:58]} 22. Qf3 {[%emt 0:00:58]} Bd8 {[%emt 0:03:02]} (22... Bxe5 23. Rxe5 hxg5 24. Rxh8+ Ne8 25. Rg8 $16) 23. Be3 {[%emt 0:10:28]} (23. c3 $11 Rd5 24. Bh4) 23... Rd5 {[%emt 0:03:39]} ({Black should play} 23... Re4 $1 $15 24. Bxa7 Rxe1+ 25. Rxe1 Nd7 26. Qxf7 Nxe5 27. Qxe7 Bxe7 28. Rxe5 h5) 24. Bxa7 {[%emt 0:00:24] [#]} (24. Bg5 $1 $11 {remains equal.}) 24... Nd7 $1 $17 {[%emt 0:03:22]} ({Much less strong is} 24... Qb4 25. Nxf7 Rf8 26. Nxd8 $16 (26. c3 Qa5 $11)) 25. Nxc6 {[%emt 0:07:11] This costs White the game.} (25. Nxf7 $2 Rf8 26. Be3 Rxf7 $19) (25. Nxd7 $17 Qxd7 26. c4) 25... bxc6 $19 {[%emt 0:00:13]} 26. Qc3 {[%emt 0:00:02] Inhibits Qb4.} Nf6 {[%emt 0:01:49]} (26... Qg5+ $2 27. Be3 Qe5 28. Qxc6+ Bc7 29. Kb1 $19) 27. Qxc6+ {[%emt 0:00:14]} Qc7 {[%emt 0:00:14]} 28. Qa6+ {[%emt 0:02:56]} Qb7 {[%emt 0:03:11]} ({Don't go for} 28... Kd7 $2 29. Be3 $19) 29. Qc4+ {[%emt 0:01:25]} Kd7 {[%emt 0:03:33][%cal Bc8d7,Bd7e8,Be8f8][%mdl 32]} ({Wrong is} 29... Qc7 $2 30. Qa6+ Qb7 31. Qc4+ Qc7 32. Rh4 $19) 30. Be3 {[%emt 0:00:28]} h5 {[%emt 0:02:07]} 31. Rd1 {[%emt 0:05:13]} Ke8 {[%emt 0:02:15]} 32. Qa4+ {[%emt 0:00:00]} Kf8 {[%emt 0:00:00]} 33. c4 {[%emt 0:00:00]} Rxd1+ {[%emt 0:00:00]} 34. Rxd1 {[%emt 0:00:00]} Be7 {[%emt 0:00:00]} 35. c5 {[%emt 0:00:00]} Nd5 {[%emt 0:00:00]} 36. c6 {[%emt 0:00:00]} Qc7 {[%emt 0:00:00]} 37. Bd4 {[%emt 0:00:00]} f6 {[%emt 0:00:00]} 38. Kb1 {[%emt 0:00:00]} Kf7 {[%emt 0:00:00] And now ...h4 would win.} 39. a3 {[%emt 0:00:00]} h4 {[%emt 0:00:00][%cal Bh5h4,Bh4h3,Bh3h2][%mdl 32]} 40. Qc2 {[%emt 0:00:00]} h3 {[%emt 0:00:00]} 41. Rg1 {[%emt 0:00:00]} Rh6 {[%emt 0:00:00]} 42. Be3 {[%emt 0:00:00]} h2 {[%emt 0:00:00]} 43. Rh1 {[%emt 0:00:00]} Rg6 {[%emt 0:00:00]} 44. Ka2 {[%emt 0:00:00]} f5 {[%emt 0:00:00] White must now prevent ...Rg1.} 45. Bd4 {[%emt 0:00:00]} Rg4 {[%emt 0:02:51]} 46. Bh8 {[%emt 0:00:39] [#]} Nb4+ $1 {[%emt 0:03:16][%mdl 512] Black mates.} 47. axb4 {[%emt 0:00:20]} Qa7+ {[%emt 0:00:05]} 48. Kb3 {[%emt 0:00:35]} Rxb4+ {[%emt 0:00:08]} 49. Kc3 {[%emt 0:00:02]} Qc5+ {[%emt 0:00:23]} 50. Kd2 {[%emt 0:02:10]} Bg5+ {[%emt 0:00:34]} 51. Kd3 {[%emt 0:01:29]} Qb5+ {[%emt 0:00:14] Weighted Error Value: White=0.59/Black=0.04 (flawless)} 0-1

[Event "Cattolica Chess Festival 2022"]
[Site "Cattolica"]
[Date "2022.06.07"]
[Round "4.2"]
[White "Schmider, Niklas"]
[Black "Rahul Srivatshav P"]
[Result "0-1"]
[ECO "A62"]
[WhiteElo "2393"]
[BlackElo "2458"]
[Annotator "TA"]
[PlyCount "72"]
[EventDate "2022.06.04"]
[EventCountry "ITA"]
[SourceTitle "playchess.com"]
[Source "ChessBase"]
[SourceQuality "1"]
[TimeControl "5400+30"]

{[%evp 19,71,2,19,-38,-33,-73,-15,-54,-58,-65,-51,-56,-64,-49,-25,-35,-31,-76,-87,-87,-91,-79,-81,-93,-35,-77,-78,-233,-204,-391,-387,-371,-369,-356,-358,-661,-650,-714,-704,-933,-795,-797,-788,-29983,-29984,-29984,-29985,-29987,-29987,-29987,-29988,-29988,-29989,-29999]} 1. d4 {[%emt 0:30:03]} Nf6 {[%emt 0:34:07]} 2. c4 {[%emt 0:00:07]} e6 {[%emt 0:00:39]} 3. g3 {[%emt 0:00:34]} c5 {[%emt 0:00:28]} 4. d5 {[%emt 0:00:13]} exd5 {[%emt 0:00:06]} 5. cxd5 {[%emt 0:00:05]} g6 {[%emt 0:00:47]} 6. Nc3 {[%emt 0:00:07]} d6 {[%emt 0:00:12]} 7. Bg2 {[%emt 0:00:16]} Bg7 {[%emt 0:00:06]} 8. Nf3 {[%emt 0:00:28]} O-O {[%emt 0:00:08]} 9. O-O {[%emt 1:03:07]} Re8 10. Bf4 {[%emt 0:00:30]} Na6 {[%emt 0:58:57] 10...Bf5 is becoming the main line.} 11. Qd2 {[%emt 0:00:00] A62: Modern Benoni: Fianchetto Variation without early ...Nbd7.} ({White should try} 11. Re1 $11) 11... Nc7 $15 {[%emt 0:00:00]} 12. a4 {[%emt 0:00:00] [#]} Bf5 $146 {[%emt 0:00:00]} (12... Ne4 $17 13. Nxe4 Rxe4) ({Predecessor:} 12... Ne4 13. Nxe4 Rxe4 14. Ne1 Rd4 15. Qc1 Bf5 16. Bd2 Qd7 17. e3 Rxa4 18. Rxa4 Qxa4 19. Bc3 {1-0 (45) Kucuksari,K (2365)-Hillarp Persson,T (2543) Chess.com INT 2020}) 13. Bh6 {[%emt 0:00:00] The position is equal.} Ne4 $1 {[%emt 0:00:00]} ({Reject} 13... Bxh6 14. Qxh6 Ncxd5 15. Nxd5 Nxd5 16. e4 (16. Ng5 Nf6 $11) 16... Bxe4 17. Ng5 $11) 14. Nxe4 {[%emt 0:00:00]} Bxe4 {[%emt 0:00:00]} 15. Bxg7 {[%emt 0:00:00]} Kxg7 {[%emt 0:00:00]} 16. Nh4 {[%emt 0:00:00]} Bxg2 {[%emt 0:00:00]} 17. Nxg2 {[%emt 0:00:00]} Re4 {[%emt 0:00:00]} 18. Ne3 {[%emt 0:00:00]} Qf6 {[%emt 0:00:00]} 19. Rfd1 {[%emt 0:00:00]} Rae8 {[%emt 0:00:00]} 20. b3 {[%emt 0:00:00]} h5 {[%emt 0:00:00] Black is more active.} 21. Rac1 {[%emt 0:00:00]} b5 {[%emt 0:00:00] Against Rc4} (21... Rb4 $17 22. Rb1 h4) 22. Qa5 {[%emt 0:00:00][%csl LRa7,LRb5,LRc7]} R8e7 {[%emt 0:00:00]} 23. Qxa7 $2 {[%emt 0:00:00] Now White is beyond hope.} (23. axb5 $17 Rb4 24. Rd3) 23... h4 $19 {[%emt 0:00:00]} 24. axb5 $2 {[%emt 0:00:00]} (24. Qa5 {was forced.} Rb4 25. Rd3 (25. axb5 Nxb5 26. Qd8 hxg3 $17)) 24... hxg3 {[%emt 0:00:00]} 25. hxg3 {[%emt 0:00:00]} Nxb5 {[%emt 0:00:00]} 26. Qa6 {[%emt 0:00:00]} Nd4 {[%emt 0:01:17] White must now prevent ...Rxe3.} 27. Qd3 {[%emt 0:00:00] [#]} (27. Rc3) 27... Qg5 $1 {[%emt 0:00:06][%cal Re4e3] Hoping for ...Rxe3.} 28. Rc3 {[%emt 0:00:00]} f5 {[%emt 0:04:57] aiming for ...f4.} ({Don't blunder} 28... Rxe3 $2 29. fxe3 Qxg3+ 30. Kf1 Qh3+ 31. Ke1 $19) 29. Kf1 {[%emt 0:00:00]} f4 {[%emt 0:00:05]} 30. gxf4 {[%emt 0:01:52]} Qh4 {[%emt 0:02:18][%cal Rh4h1]} 31. Kg2 {[%emt 0:07:08] Prevents Qh1+.} Rxf4 {[%emt 0:00:11] Black mates.} 32. f3 {[%emt 0:00:24]} Re5 {[%emt 0:00:53]} 33. Rg1 {[%emt 0:00:00] [#]} Nxf3 $1 {[%mdl 512]} 34. exf3 {[%emt 0:00:00]} Rg5+ {[%emt 0:00:00][%mdl 64] Skewer} 35. Ng4 {[%emt 0:00:00]} Rgxg4+ {[%emt 0:00:00][%mdl 64] Remove Defender} 36. fxg4 {[%emt 0:00:00]} Rf2# {[%emt 0:00:00] Weighted Error Value: White=0.93/Black=0.07 (flawless)} 0-1

[Event "Cattolica Chess Festival 2022"]
[Site "Cattolica"]
[Date "2022.06.07"]
[Round "4.3"]
[White "Safarli, Eltaj"]
[Black "Trost, Edvin"]
[Result "1-0"]
[ECO "B10"]
[WhiteElo "2600"]
[BlackElo "2366"]
[Annotator "TA"]
[PlyCount "55"]
[EventDate "2022.06.04"]
[EventCountry "ITA"]
[SourceTitle "playchess.com"]
[Source "ChessBase"]
[SourceQuality "1"]
[TimeControl "5400+30"]

{[%evp 9,55,16,25,23,28,17,22,33,32,18,28,0,4,-3,8,16,19,0,0,0,90,67,108,105,95,95,110,118,104,106,108,108,115,109,106,110,163,179,152,153,143,133,164,166,285,272,337,305]} 1. e4 {[%emt 0:31:52]} c6 {[%emt 0:30:23]} 2. Nf3 {[%emt 0:02:33]} d5 {[%emt 0:00:32]} 3. d3 {[%emt 0:00:07]} g6 {[%emt 0:01:44]} 4. e5 {[%emt 0:00:22]} Bg7 {[%emt 0:00:21]} 5. d4 {[%emt 0:00:36]} f6 {[%emt 0:01:19]} 6. exf6 {[%emt 0:00:19] B10: Caro-Kann: 2 d3 and 2 c4.} Nxf6 {[%emt 0:00:10]} 7. Be2 {[%emt 0:03:10]} O-O {[%emt 0:00:15][%cal Oc6c5]} 8. O-O {[%emt 0:00:08] The position is equal.} Bg4 {[%emt 0:04:09]} 9. Nbd2 {[%emt 0:03:41]} Qd6 {[%emt 0:01:10] [#]} 10. b3 $146 {[%emt 0:18:53]} ({Predecessor:} 10. Ne5 Bxe2 11. Qxe2 Nbd7 12. f4 c5 13. c3 cxd4 14. cxd4 Rac8 15. Ndf3 Ne4 16. Be3 Nxe5 17. dxe5 {½-½ (49) Sjugirov,S (2680)-Grandelius,N (2672) Chess.com INT 2022}) 10... Nbd7 {[%emt 0:04:23]} 11. a4 {[%emt 0:02:53]} Rfe8 {[%emt 0:00:45]} (11... Nh5 {is interesting.} 12. Ba3 c5 13. dxc5 Qf6) 12. Ba3 {[%emt 0:01:10]} Qc7 {[%emt 0:00:46]} 13. Ne5 {[%emt 0:03:08]} Bf5 {[%emt 0:01:48]} 14. f4 {[%emt 0:01:29]} Qb6 {[%emt 0:14:45]} (14... c5 $11 {keeps the balance.}) 15. c3 $16 {[%emt 0:04:25]} c5 {[%emt 0:19:54]} 16. g4 $1 {[%emt 0:02:10]} Be6 {[%emt 0:00:18]} 17. g5 $1 $36 {[%emt 0:03:29][%mdl 2048] Keeping Black busy.} cxd4 {[%emt 0:01:45] ...d3+ is the strong threat.} 18. a5 $1 {[%emt 0:00:09]} Qxa5 {[%emt 0:00:09][%cal Oa5b6] Threatens to win with ...Qb6!} 19. gxf6 {[%emt 0:01:24]} exf6 {[%emt 0:00:28] [#]} 20. Nxd7 {[%emt 0:02:00] White is more active.} ({Inferior is} 20. cxd4 fxe5 21. dxe5 Bh6 $17) 20... Bxd7 {[%emt 0:01:01]} 21. cxd4 {[%emt 0:00:32]} Qc3 {[%emt 0:00:25]} 22. Bc5 {[%emt 0:03:03]} b6 {[%emt 0:05:03]} (22... f5 $16 {is a better defense.}) 23. Rf3 $18 {[%emt 0:00:10]} Qb2 {[%emt 0:00:24] aiming for ...Rxe2.} 24. Rb1 {[%emt 0:00:36]} Qa2 {[%emt 0:00:04]} 25. Bb4 {[%emt 0:01:46] And now Ra1 would win.} Rac8 {[%emt 0:04:10] [#]} 26. Rf2 $1 {[%emt 0:05:00]} Bf5 {[%emt 0:01:13] Against Bd3} (26... a5 $142) 27. Ra1 {[%emt 0:00:48]} Qb2 {[%emt 0:00:12][%cal Oe8e2] [#] Hoping for ...Rxe2!} 28. Nc4 $1 {[%emt 0:02:04][%mdl 512] Weighted Error Value: White=0.02 (flawless) /Black=0.23 (precise)} 1-0